bitfinex-derivatives/quotes_ETHF0:USTF0_20250621
["timestamp","ask_amount","ask_price","bid_price","bid_amount"]
[1750501947956,7.86739,2443.4,2443.3,3.2078]
[1750501948159,0.81845,2443.2,2443.1,0.81847]
[1750501948360,27.48506765,2443.2,2443.1,0.81849]
[1750501948555,26.66661765,2443.2,2442.8,3.2078]
[1750501948758,0.81863,2442.7,2442.6,0.81864]
[1750501949062,36.21941765,2442.7,2442.2,3.879]
[1750501949261,2.7826,2442.6,2442.5,0.81869]
[1750501949463,3.60125,2442.6,2442.5,0.81869]
[1750501949663,2.7826,2442.6,2442.5,0.81869]
[1750501950058,3.60125,2442.6,2442.5,0.81869]
[1750501950363,0.81871,2442.5,2442.2,4.20563632]
[1750501950563,24.811,2442.4,2442.3,0.81875]
[1750501954559,2.04689,2442.3,2441.6,3.2078]
[1750501954872,1.87961765,2441.7,2440.5,5.08741765]
[1750501955062,3.2078,2441.1,2440.6,0.6544]
[1750501955363,6.346,2441.3,2440.8,2.04815]
[1750501955555,28.0778,2441.2,2441.1,0.81916]
[1750501955763,3.2078,2441.5,2441.3,0.81907]
[1750501956065,3.2078,2441.5,2441.1,5.08741765]
[1750501956264,0.6684,2441.6,2441.5,0.81902]
[1750501956462,31.9024,2441.6,2441.5,0.81902]
[1750501956864,3.2078,2441.8,2441.7,0.81895]
[1750501957164,34.4418,2441.8,2441.7,0.81895]
[1750501957362,3.2078,2441.8,2441.7,0.81895]
[1750501957568,2.52201765,2442.2,2442.0,0.81885]
[1750501957569,3.2078,2442.1,2442.0,0.81885]
[1750501957758,34.4428,2442.1,2442.0,0.81885]
[1750501958369,34.4568,2442.1,2442.0,0.81885]
[1750501958664,3.2078,2442.1,2442.0,0.81885]
[1750501959074,24.902,2442.2,2442.1,0.81882]
[1750501964375,25.72081,2442.2,2442.0,0.81884]
[1750501964671,25.72081,2442.2,2442.1,0.81882]
[1750501965074,24.902,2442.2,2442.1,0.81882]
[1750501965371,25.72079,2442.2,2442.0,0.81883]
[1750501966074,24.902,2442.2,2442.1,0.81882]
[1750501968462,25.72079,2442.2,2442.1,0.81882]
[1750501968874,24.902,2442.2,2442.1,0.81882]
[1750501969675,25.72079,2442.2,2442.1,0.81882]
[1750501969975,24.902,2442.2,2442.1,0.81882]
[1750501972079,25.72079,2442.2,2442.1,0.81882]
[1750501972376,0.81885,2442.1,2442.0,0.81884]
[1750501972679,27.01131,2442.2,2442.1,0.81882]
[1750501973567,24.902,2442.2,2442.1,0.81882]
[1750501973767,25.72079,2442.2,2442.1,0.81882]
[1750501975669,27.09019,2442.2,2442.1,0.81882]
[1750501976175,0.81884,2442.1,2442.0,0.81883]
[1750501976671,27.09021,2442.2,2442.1,0.81882]
[1750501977275,24.902,2442.2,2442.1,0.81882]
[1750501977973,25.72079,2442.2,2442.1,0.81882]
[1750501978373,24.902,2442.2,2442.1,0.81882]
[1750501979270,25.72079,2442.2,2442.1,0.81882]
[1750501980079,24.902,2442.2,2442.1,0.81882]
[1750501981785,3.9083,2442.4,2442.3,0.81875]
[1750501982075,3.9083,2442.4,2441.8,2.74161]
[1750501982076,37.04091765,2442.4,2441.8,2.74161]
[1750501982276,0.81881,2442.2,2442.1,0.81881]
[1750501982477,25.67181,2442.2,2442.1,0.81881]
[1750501982666,0.81883,2442.1,2442.0,0.81883]
[1750501982871,5.95033,2442.1,2442.0,0.81883]
[1750501983177,5.95033,2442.1,2442.0,0.81885]
[1750501983580,13.57861,2442.1,2441.2,5.25553]
[1750501983772,5.08741765,2441.8,2441.2,5.95683]
[1750501983974,26.8311,2441.7,2441.2,3.9091]
[1750501984170,0.819,2441.6,2441.5,0.819]
[1750501984374,1.2829,2441.6,2441.5,0.819]
[1750501986283,1.9216,2441.6,2441.5,0.819]
[1750501987277,2.74059,2441.6,2441.5,0.819]
[1750501987481,1.9216,2441.6,2441.5,0.819]
[1750501988487,2.74059,2441.6,2441.5,0.819]
[1750501988787,0.6387,2441.6,2441.5,0.819]
[1750501990086,0.6387,2441.6,2441.4,0.81904]
[1750501990390,24.857,2441.5,2441.4,0.81906]
[1750501991888,0.8189,2441.9,2441.3,3.92733765]
[1750501992088,31.253,2441.8,2441.7,0.81895]
[1750501992596,32.07192,2441.8,2441.7,0.81895]
[1750501992892,35.27972,2441.8,2441.7,0.81895]
[1750501993093,0.81896,2441.7,2441.6,0.81896]
[1750501993296,3.51526,2441.7,2441.6,0.81896]
[1750501993593,2.6963,2441.7,2441.2,3.9091]
[1750501993789,3.23271765,2441.6,2441.3,0.81906]
[1750501994092,32.6021,2441.5,2441.4,0.81906]
[1750501998195,33.42112,2441.5,2441.4,0.81906]
[1750501998494,33.42114,2441.5,2441.4,0.81906]
[1750501998897,0.81906,2441.4,2441.3,0.81907]
[1750501999093,33.42115,2441.5,2441.4,0.81906]
[1750501999291,33.41715,2441.5,2441.4,0.81906]
[1750502000390,32.5981,2441.5,2441.3,0.81906]
[1750502000596,32.06405,2441.5,2441.4,0.81906]
[1750502000792,32.06405,2441.5,2441.3,0.81907]
[1750502000793,0.81909,2441.4,2441.3,0.81907]
[1750502001397,0.81909,2441.3,2441.2,4.0269]
[1750502001598,26.33919,2441.3,2441.2,0.8191]
[1750502001893,25.5201,2441.3,2441.2,0.8191]
[1750502002292,24.838,2441.3,2441.2,0.8191]
[1750502007097,25.65709,2441.3,2441.2,0.8191]
[1750502007396,24.838,2441.3,2441.1,0.81913]
[1750502007596,1.3083,2441.2,2441.1,0.81913]
[1750502008099,1.3083,2441.2,2440.8,5.1711]
[1750502008305,24.833,2441.1,2441.0,0.81919]
[1750502015612,6.375,2441.3,2441.2,0.81912]
[1750502015805,3.2078,2441.4,2441.3,0.81909]
[1750502016510,34.4028,2441.4,2441.3,0.81909]
[1750502016904,3.2078,2441.4,2441.3,0.81909]
[1750502017104,9.5828,2441.4,2441.3,2.69870765]
[1750502017305,34.4048,2441.4,2441.3,4.01790765]
[1750502017501,4.534,2441.8,2441.7,0.81895]
[1750502017701,36.8577629,2441.8,2441.7,0.81895]
[1750502017908,12.0247629,2441.8,2441.7,0.81895]
[1750502018113,32.5332,2441.8,2441.7,4.02675]
[1750502023632,33.35212,2441.8,2441.7,0.81895]
[1750502024036,1.3595,2442.5,2441.8,2.04731]
[1750502024331,25.68974,2442.4,2442.2,0.81876]
[1750502024629,1.2822,2442.3,2442.2,0.81879]
[1750502025035,26.1532,2442.3,2442.2,0.81879]
[1750502027739,26.1442,2442.3,2442.2,0.81879]
[1750502028440,26.96295,2442.3,2442.2,0.81879]
[1750502028741,26.1442,2442.3,2442.2,0.81879]
[1750502031240,0.8188,2442.2,2442.1,0.81881]
[1750502031436,26.96298,2442.3,2442.2,0.81879]
[1750502031837,0.8188,2442.2,2442.1,0.81881]
[1750502032043,2.2344,2442.2,2442.1,0.81881]
[1750502032244,0.81882,2442.1,2442.0,4.02663]
[1750502032444,25.5415,2442.1,2442.0,4.02663]
[1750502034346,34.10842,2442.1,2442.0,3.2078]
[1750502035850,34.10842,2442.1,2442.0,4.02665]
[1750502036350,33.2896,2442.1,2442.0,4.02665]
[1750502036549,31.9235,2442.1,2442.0,4.02665]
[1750502038052,0.6905,2442.1,2442.0,4.02665]
[1750502038253,25.5615,2442.1,2442.0,4.02665]
[1750502039449,25.5585,2442.1,2442.0,4.02665]
[1750502039956,1.3661,2442.4,2442.0,4.02665]
[1750502039957,1.3661,2442.4,2442.0,3.2078]
[1750502040151,24.865,2442.3,2442.2,0.81877]
[1750502042156,7.0266,2442.4,2442.3,0.81875]
[1750502042356,31.8986,2442.4,2442.3,4.02655]
[1750502042655,0.6446,2442.4,2442.3,4.02655]
[1750502042849,25.5136,2442.4,2442.3,4.02655]
[1750502043054,25.5146,2442.4,2442.3,4.02655]
[1750502043251,26.33332,2442.4,2442.3,3.2078]
[1750502043455,26.9041,2442.4,2442.2,0.81877]
[1750502043656,0.81877,2442.3,2442.2,0.81877]
[1750502044358,25.68577,2442.3,2442.2,0.81877]
[1750502044854,25.68577,2442.3,2442.1,1.4822]
[1750502044855,0.81879,2442.2,2442.1,1.4822]
[1750502045754,27.07527,2442.3,2442.2,0.81879]
[1750502046856,0.81879,2442.2,2442.1,1.4822]
[1750502048755,27.07527,2442.3,2442.2,0.81879]
[1750502049160,0.81879,2442.2,2442.1,1.48221]
[1750502049465,0.81882,2442.1,2442.0,4.02662]
[1750502049661,0.81882,2442.1,2442.0,3.2078]
[1750502050162,2.13902,2442.1,2442.0,3.2078]
[1750502051562,2.13902,2442.1,2442.0,4.02665]
[1750502052664,2.13902,2442.1,2442.0,3.2078]
[1750502053264,3.2531914,2442.1,2442.0,3.2078]
[1750502053963,3.2531914,2442.1,2442.0,4.02665]
[1750502054362,2.4343714,2442.1,2442.0,4.02665]
[1750502054569,3.2531914,2442.1,2442.0,3.2078]
[1750502055169,3.2531914,2442.1,2442.0,4.02665]
[1750502055364,2.13902,2442.1,2442.0,4.02665]
[1750502056559,2.13902,2442.1,2442.0,3.2078]
[1750502058669,0.81885,2442.0,2441.9,0.81886]
[1750502058870,25.67485,2442.0,2441.9,4.02666]
[1750502060166,26.98085,2442.0,2441.9,4.02666]
[1750502060371,26.162,2442.0,2441.9,4.02666]
[1750502060569,26.98085,2442.0,2441.9,4.02666]
[1750502061470,26.98085,2442.0,2441.9,3.2078]
[1750502061667,26.98085,2442.0,2441.9,4.02669]
[1750502061870,0.81885,2442.0,2441.9,4.02669]
[1750502062170,24.847,2442.0,2441.9,4.02669]
[1750502063564,25.66585,2442.0,2441.9,4.02669]
[1750502065571,24.847,2442.0,2441.9,4.02669]
[1750502065971,8.50084,2442.1,2442.0,0.81885]
[1750502066169,2.22258,2442.3,2442.0,0.81885]
[1750502066472,1.3894,2442.4,2442.3,0.81875]
[1750502066674,33.05874635,2442.4,2442.3,0.81875]
[1750502068677,33.87746635,2442.4,2442.3,0.81875]
[1750502068974,0.81866,2442.6,2442.5,0.81867]
[1750502069180,25.67566,2442.6,2442.5,0.81867]
[1750502069473,1.46334,2442.7,2442.6,0.81865]
[1750502069773,27.51178276,2442.7,2442.6,0.81865]
[1750502070076,27.51278276,2442.7,2442.6,0.81865]
[1750502071678,0.81868,2442.6,2442.5,0.81867]
[1750502071875,0.8187,2442.5,2442.4,0.81871]
[1750502073179,0.81875,2442.3,2442.2,4.02657]
[1750502073476,0.81879,2442.2,2442.1,0.8188]
[1750502073779,0.81885,2442.0,2441.9,4.02667]
[1750502073972,25.76185,2442.0,2441.9,4.02667]
[1750502074171,25.76185,2442.0,2441.9,3.2078]
[1750502074375,24.943,2442.0,2441.9,4.02669]
[1750502074578,32.13785,2442.0,2441.9,3.2078]
[1750502074773,32.13785,2442.0,2441.9,4.02669]
[1750502074971,32.13785,2442.0,2441.9,3.2078]
[1750502075574,31.319,2442.0,2441.9,4.02669]
[1750502075774,0.81877,2442.3,2442.2,0.81878]
[1750502075978,1.11226533,2442.3,2442.2,4.02658]
[1750502076179,24.951,2442.4,2442.3,0.81873]
[1750502076379,24.986,2442.4,2442.3,0.81873]
[1750502076581,24.986,2442.4,2442.3,1.50153]
[1750502076879,24.986,2442.5,2442.3,2.72967]
[1750502077182,6.376,2442.7,2442.6,0.81865]
[1750502077379,7.19461,2442.8,2442.7,0.81862]
[1750502077580,7.48800078,2442.8,2442.7,0.81862]
[1750502077782,32.18959,2442.8,2442.7,0.81862]
[1750502078086,0.81859,2442.8,2442.7,0.81862]
[1750502078285,25.81259,2442.8,2442.7,0.81862]
[1750502079375,24.994,2442.8,2442.7,0.81862]
[1750502080180,25.81859,2442.8,2442.7,0.81862]
[1750502080802,25.0,2442.8,2442.7,0.81862]
[1750502081187,25.81859,2442.8,2442.7,0.81862]
[1750502081389,25.80659,2442.8,2442.7,0.81862]
[1750502082089,7.0791,2442.9,2442.8,0.81859]
[1750502082383,0.7041,2442.9,2442.8,0.81859]
[1750502082687,32.0641,2442.9,2442.8,0.81859]
[1750502082992,3.2078,2443.0,2442.9,0.81855]
[1750502083180,28.1918,2443.0,2442.9,0.81855]
[1750502083987,0.8185,2443.1,2443.0,0.81852]
[1750502084189,25.8835,2443.1,2443.0,0.81852]
[1750502084391,25.065,2443.1,2443.0,0.81852]
[1750502084584,0.6566,2443.3,2442.9,2.04639]
[1750502084788,25.064,2443.1,2443.0,0.81852]
[1750502087693,25.88249,2443.1,2443.0,0.81852]
[1750502088987,25.064,2443.1,2443.0,0.81852]
[1750502089789,25.13247599,2443.1,2443.0,0.81852]
[1750502091586,25.13247599,2443.1,2442.9,1.87961765]
[1750502091587,25.13247599,2443.1,2442.9,2.69814765]
[1750502091886,25.13247599,2443.1,2442.8,4.66567]
[1750502092192,2.82284,2443.0,2442.9,0.81853]
[1750502093193,0.81855,2442.9,2442.8,1.45787]
[1750502093384,2.82284,2443.0,2442.9,0.81855]
[1750502094301,27.86082,2443.0,2442.9,0.81855]
[1750502096588,27.0423,2443.0,2442.9,0.81855]
[1750502096788,27.86082,2443.0,2442.9,0.81855]
[1750502096981,27.0423,2443.0,2442.9,0.81855]
[1750502097293,27.86082,2443.0,2442.9,0.81855]
[1750502098295,27.0423,2443.0,2442.9,0.81855]
[1750502098487,27.0423,2443.0,2442.9,4.02635]
[1750502098687,25.6947,2443.0,2442.9,4.02635]
[1750502099394,25.012,2443.1,2443.0,0.81852]
[1750502099594,2.18205,2443.3,2443.2,0.81845]
[1750502099797,27.19405,2443.3,2443.2,0.81845]
[1750502100092,28.49765,2443.3,2443.2,0.81845]
[1750502100796,0.81847,2443.2,2443.1,0.81846]
[1750502101793,0.81851,2443.1,2443.0,0.8185]
[1750502101997,0.88698599,2443.1,2443.0,0.8185]
[1750502103598,0.88698599,2443.1,2443.0,4.0263]
[1750502103894,0.88698599,2443.1,2443.0,3.2078]
[1750502104294,0.88698599,2443.1,2443.0,4.02632]
[1750502104495,0.88698599,2443.1,2443.0,3.2078]
[1750502104693,0.81855,2443.0,2442.8,0.6393]
[1750502104893,25.81255,2442.9,2442.8,1.45789]
[1750502105093,26.45415,2442.9,2442.8,0.81859]
[1750502106000,25.6356,2442.9,2442.8,0.81859]
[1750502108901,26.45415,2442.9,2442.8,0.81859]
[1750502111003,25.6356,2442.9,2442.8,0.81859]
[1750502111597,24.972,2442.9,2442.8,0.81859]
[1750502112793,25.79055,2442.9,2442.8,0.81859]
[1750502112993,24.972,2442.9,2442.8,0.81859]
[1750502113598,24.972,2442.9,2442.8,4.02639]
[1750502113799,25.79055,2442.9,2442.8,4.02639]
[1750502115396,25.79055,2442.9,2442.8,0.81859]
[1750502115899,25.79055,2442.9,2442.8,4.02639]
[1750502116198,24.972,2442.9,2442.8,4.02639]
[1750502116998,25.79055,2442.9,2442.8,4.02639]
[1750502117601,24.972,2442.9,2442.8,4.02639]
[1750502118803,7.31052,2443.0,2442.9,0.81855]
[1750502119099,32.26752,2443.0,2442.9,0.81855]
[1750502120003,31.449,2443.0,2442.9,0.81855]
[1750502120203,32.26752,2443.0,2442.9,0.81855]
[1750502122203,32.26752,2443.0,2442.9,4.02635]
[1750502134508,32.33599599,2443.0,2442.9,4.02635]
[1750502135612,32.26752,2443.0,2442.9,4.02635]
[1750502140819,32.26752,2443.0,2442.9,0.81855]
[1750502141316,0.81855,2442.9,2442.8,4.02637]
[1750502141511,0.81855,2442.9,2442.8,3.2078]
[1750502141720,2.19595,2442.9,2442.8,3.2078]
[1750502145818,0.81872,2442.4,2442.3,4.08380543]
[1750502146015,0.81872,2442.4,2441.8,3.2078]
[1750502146016,0.81888,2442.0,2441.8,4.0267]
[1750502146210,24.911,2441.9,2441.8,5.90633765]
[1750502148319,25.72988,2441.9,2441.8,5.90633765]
[1750502148524,24.911,2441.9,2441.8,5.90633765]
[1750502157431,0.81884,2442.1,2442.0,0.81885]
[1750502157727,25.71984,2442.1,2442.0,2.69846765]
[1750502158724,0.81884,2442.1,2442.0,2.69846765]
[1750502159029,25.71684,2442.1,2442.0,2.69846765]
[1750502160821,25.71684,2442.1,2442.0,1.87961765]
[1750502161224,27.10484,2442.1,2442.0,1.87961765]
[1750502167137,0.81885,2442.0,2441.9,3.39459765]
[1750502173531,0.81885,2442.0,2441.9,2.57571765]
[1750502174632,2.15525,2442.0,2441.9,2.57571765]
[1750502177238,0.81856,2442.9,2442.7,0.8186]
[1750502177436,6.413,2443.1,2443.0,0.81852]
[1750502177743,0.81843,2443.3,2443.1,0.81847]
[1750502177941,32.47539812,2443.2,2443.1,0.81847]
[1750502178340,31.338,2443.2,2443.1,0.81847]
[1750502179142,0.81843,2443.3,2443.1,0.81847]
[1750502179342,31.333,2443.2,2443.1,0.81847]
[1750502180336,32.15145,2443.2,2443.1,0.81847]
[1750502181031,0.81845,2443.2,2443.1,0.81847]
[1750502181235,32.14745,2443.2,2443.1,0.81847]
[1750502182240,31.329,2443.2,2443.1,0.81847]
[1750502182544,8.412,2443.4,2443.3,0.81841]
[1750502182743,33.33,2443.4,2443.3,0.81841]
[1750502183043,34.14838,2443.4,2443.3,0.81841]
[1750502183839,33.33,2443.4,2443.3,0.81841]
[1750502184448,7.1184,2443.4,2443.3,2.69802765]
[1750502184644,32.0284,2443.4,2443.3,2.69802765]
[1750502185143,7.1184,2443.4,2443.3,2.69802765]
[1750502185338,25.6214,2443.4,2443.3,2.69802765]
[1750502185646,3.2078,2443.5,2443.4,0.81838]
[1750502185840,34.5338,2443.5,2443.4,0.81838]
[1750502186039,35.35215,2443.5,2443.4,0.81838]
[1750502186638,10.44015,2443.5,2443.4,0.81838]
[1750502186838,3.2078,2443.5,2443.4,0.81838]
[1750502187038,28.1158,2443.5,2443.4,0.81838]
[1750502187646,28.93415,2443.5,2443.4,0.81838]
[1750502187847,4.02615,2443.5,2443.4,0.81838]
[1750502188041,28.93515,2443.5,2443.4,0.81838]
[1750502188440,0.81838,2443.4,2443.3,3.36340765]
[1750502189337,28.1168,2443.5,2443.2,0.81843]
[1750502189546,0.81841,2443.3,2443.2,0.81843]
[1750502189747,25.72141,2443.3,2443.2,0.81843]
[1750502191249,0.81845,2443.2,2443.1,0.81846]
[1750502191547,26.42364,2443.3,2443.2,0.81845]
[1750502194349,26.49211599,2443.3,2443.2,0.81845]
[1750502194749,2.04613,2443.2,2442.3,3.2078]
[1750502195044,0.81864,2442.7,2442.4,0.81869]
[1750502195349,27.6263,2442.6,2442.5,0.81868]
[1750502195542,27.6263,2442.6,2442.3,2.53701765]
[1750502196042,0.8187,2442.5,2442.3,1.47613]
[1750502196349,0.81872,2442.4,2442.3,0.6574]
[1750502196647,0.81872,2442.4,2442.3,1.47615]
[1750502196850,0.81875,2442.3,2442.2,0.81876]
[1750502197049,25.73775,2442.3,2442.2,0.81876]
[1750502197347,25.73775,2442.3,2442.0,0.81884]
[1750502197348,0.8188,2442.2,2442.0,0.81884]
[1750502197747,0.81882,2442.1,2442.0,0.81884]
[1750502199043,0.81881,2442.2,2442.0,0.81884]
[1750502199244,0.81882,2442.1,2441.9,0.6642]
[1750502199443,24.934,2442.0,2441.9,1.48307]
[1750502199849,25.75285,2442.0,2441.9,1.48307]
[1750502200145,25.5971,2442.0,2441.9,1.48307]
[1750502200851,26.41595,2442.0,2441.9,0.6642]
[1750502201150,25.5971,2442.0,2441.9,1.48308]
[1750502201451,26.41595,2442.0,2441.9,0.6642]
[1750502202351,26.41595,2442.0,2441.9,1.48308]
[1750502202539,0.8189,2441.9,2441.7,4.02673]
[1750502202941,2.1088,2441.9,2441.8,0.81892]
[1750502203250,2.1088,2441.9,2441.7,4.02673]
[1750502203653,2.1088,2441.9,2441.8,0.81892]
[1750502204449,1.2899,2441.9,2441.8,0.81892]
[1750502205553,26.41597,2442.0,2441.9,0.81888]
[1750502206348,27.79677,2442.0,2441.9,0.81888]
[1750502206956,26.9779,2442.0,2441.9,0.81888]
[1750502207356,27.79675,2442.0,2441.9,0.81888]
[1750502207559,26.9779,2442.0,2441.9,0.81888]
[1750502209561,27.79675,2442.0,2441.9,0.81888]
[1750502209860,27.79675,2442.0,2441.9,0.88735599]
[1750502210653,27.79675,2442.0,2441.9,0.81888]
[1750502210862,25.5971,2442.0,2441.9,0.81888]
[1750502211157,26.41595,2442.0,2441.9,0.81888]
[1750502211659,26.41595,2442.0,2441.9,0.88735599]
[1750502212556,25.5971,2442.0,2441.9,0.88735599]
[1750502213359,26.41595,2442.0,2441.9,0.88735599]
[1750502216762,26.41595,2442.0,2441.9,0.81888]
[1750502217757,26.41595,2442.0,2441.9,0.88735599]
[1750502217960,26.41595,2442.0,2441.9,0.06847599]
[1750502218556,30.98455,2442.0,2441.9,0.06847599]
[1750502218862,26.41595,2442.0,2441.9,0.06847599]
[1750502220364,26.41595,2442.0,2441.9,0.88735599]
[1750502220558,32.77395,2442.0,2441.9,2.76697364]
[1750502221259,31.9551,2442.0,2441.9,2.76697364]
[1750502221566,0.81884,2442.1,2442.0,0.81885]
[1750502221761,25.70184,2442.1,2442.0,0.81885]
[1750502221961,25.70184,2442.1,2442.0,1.52165]
[1750502224170,25.70184,2442.1,2442.0,2.80675]
[1750502225767,25.70184,2442.1,2442.0,0.7028]
[1750502227067,26.40734,2442.1,2442.0,0.7028]
[1750502227865,26.40734,2442.1,2442.0,1.52165]
[1750502228775,0.81885,2442.0,2441.9,1.87961765]
[1750502228969,0.8189,2441.9,2441.8,0.81889]
[1750502229170,25.6899,2441.9,2441.8,0.81889]
[1750502231780,0.81892,2441.8,2441.7,6.57194765]
[1750502233673,0.81892,2441.8,2441.7,0.6656]
[1750502233867,0.81898,2441.6,2441.5,2.69862765]
[1750502234064,0.81898,2441.6,2441.5,3.39772765]
[1750502234271,0.7021,2441.7,2441.5,3.39772765]
[1750502234670,0.81898,2441.6,2441.5,3.39772765]
[1750502235370,1.52108,2441.7,2441.5,3.39772765]
[1750502235570,1.52108,2441.7,2441.6,0.81898]
[1750502236072,0.81898,2441.6,2441.5,3.39771765]
[1750502236778,1.52107,2441.7,2441.6,0.81898]
[1750502241377,0.81898,2441.6,2441.5,1.5181]
[1750502241583,34.4808,2441.6,2441.0,3.2078]
[1750502241785,0.81912,2441.2,2441.1,2.58391765]
[1750502242085,0.81915,2441.1,2441.0,3.2078]
[1750502242284,25.68514,2441.2,2441.1,0.81915]
[1750502242485,0.81915,2441.1,2441.0,4.02696]
[1750502243381,0.81915,2441.1,2441.0,0.81916]
[1750502243884,0.81915,2441.1,2441.0,0.81919]
[1750502244079,0.81919,2441.0,2440.9,3.34791765]
[1750502244977,6.385,2441.0,2440.7,3.2078]
[1750502245186,25.68724,2440.9,2440.8,0.81925]
[1750502247587,0.81925,2440.8,2440.7,4.02706]
[1750502248287,27.02593,2440.9,2440.8,0.81925]
[1750502248481,27.02593,2440.9,2440.7,4.02706]
[1750502248677,0.81925,2440.8,2440.7,4.02706]
[1750502248877,27.02594,2440.9,2440.7,4.02706]
[1750502249077,0.81925,2440.8,2440.7,3.2078]
[1750502249478,0.81925,2440.8,2440.7,4.02709]
[1750502249677,0.81925,2440.8,2440.6,2.54061765]
[1750502250080,8.26561765,2440.7,2440.0,3.2078]
[1750502250283,0.81937,2440.5,2440.0,5.08741765]
[1750502250589,2.04814,2440.8,2440.7,0.81929]
[1750502250590,7.20527,2440.8,2440.7,0.81929]
[1750502250784,0.81929,2440.7,2440.6,0.8193]
[1750502251179,32.11328,2440.8,2440.7,0.81929]
[1750502251685,0.8193,2440.7,2440.6,0.81931]
[1750502252180,0.81932,2440.6,2440.5,1.52124]
[1750502252376,2.19221,2440.7,2440.6,0.81932]
[1750502252577,2.89191,2440.7,2440.6,0.81932]
[1750502253682,0.81932,2440.6,2440.5,1.52124]
[1750502254193,6.09969,2440.7,2440.6,0.81932]
[1750502254488,34.5238,2440.7,2440.6,2.76741364]
[1750502255083,28.1398,2440.7,2440.6,2.76741364]
[1750502255786,3.2078,2440.7,2440.6,2.76741364]
[1750502255990,28.1398,2440.7,2440.6,2.76741364]
[1750502256289,24.929,2440.8,2440.6,5.97521364]
[1750502256491,24.929,2440.8,2440.7,2.77159]
[1750502256884,24.929,2440.8,2440.7,1.46939]
[1750502257892,0.81929,2440.7,2440.6,0.8193]
[1750502258083,1.50699,2440.7,2440.6,0.8193]
[1750502258279,1.50699,2440.7,2440.6,0.88777599]
[1750502258984,2.18749,2440.7,2440.6,0.88777599]
[1750502259185,2.18749,2440.7,2440.6,0.06847599]
[1750502259389,3.47279,2440.7,2440.6,0.06847599]
[1750502259892,3.47279,2440.7,2440.6,0.88779599]
[1750502260192,9.86079,2440.7,2440.6,0.88779599]
[1750502261994,9.0415,2440.7,2440.6,0.88779599]
[1750502262295,9.86079,2440.7,2440.6,0.88779599]
[1750502263394,8.57549,2440.7,2440.6,0.88779599]
[1750502263590,7.7562,2440.7,2440.6,0.88779599]
[1750502263895,0.6805,2440.7,2440.6,0.88779599]
[1750502264091,31.9975,2440.7,2440.6,0.88779599]
[1750502268096,32.81679,2440.7,2440.6,0.88779599]
[1750502268994,31.9975,2440.7,2440.6,0.88779599]
[1750502270995,31.298,2440.7,2440.6,0.88779599]
[1750502271198,0.81922,2440.9,2440.8,0.81925]
[1750502271698,32.11322,2440.9,2440.8,0.81925]
[1750502271899,32.11222,2440.9,2440.8,0.81925]
[1750502272398,0.81922,2440.9,2440.8,0.81925]
[1750502272598,32.11222,2440.9,2440.8,0.81925]
[1750502272995,33.17261765,2440.9,2440.6,0.06847599]
[1750502273196,0.81929,2440.7,2440.6,0.88779599]
[1750502273396,25.72629,2440.7,2440.6,0.88779599]
[1750502278104,27.12469,2440.7,2440.6,0.88779599]
[1750502282400,1.3984,2440.7,2440.6,0.88779599]
[1750502282606,31.285,2440.7,2440.6,0.88779599]
[1750502284617,32.10429,2440.7,2440.6,0.88779599]
[1750502289620,33.46509,2440.7,2440.6,0.88779599]
[1750502290128,33.46509,2440.7,2440.6,0.06847599]
[1750502291422,33.46509,2440.7,2440.6,0.88779599]
[1750502292519,33.46509,2440.7,2440.6,0.06847599]
[1750502293121,33.46509,2440.7,2440.6,0.88779599]
[1750502293823,2.213,2441.0,2440.6,3.99639364]
[1750502294017,32.41725142,2440.9,2440.8,0.81922]
[1750502296319,7.1033,2441.0,2440.9,0.81922]
[1750502296523,33.11964892,2441.0,2440.9,0.81922]
[1750502296725,8.23564892,2441.0,2440.9,1.51682]
[1750502296910,50.3938,2441.1,2441.0,0.81919]
[1750502297114,82.82114192,2441.1,2441.0,0.81919]
[1750502297514,83.64029192,2441.1,2441.0,0.81919]
[1750502297724,82.82114192,2441.1,2441.0,0.81919]
[1750502299022,35.63514192,2441.1,2441.0,0.81919]
[1750502299513,35.62914192,2441.1,2441.0,0.81919]
[1750502300127,3.2078,2441.1,2441.0,0.81919]
[1750502300329,28.0938,2441.1,2441.0,0.81919]
[1750502301018,3.2078,2441.1,2441.0,0.81919]
[1750502301218,0.81914,2441.2,2441.1,0.81915]
[1750502301422,6.401,2441.3,2441.2,0.81912]
[1750502301634,7.53252616,2441.3,2441.2,0.81912]
[1750502301825,31.311,2441.3,2441.2,0.81912]
[1750502302220,31.31,2441.3,2441.2,0.81912]
[1750502302420,6.401,2441.4,2441.3,0.81908]
[1750502302620,31.31,2441.4,2441.3,0.81908]
[1750502303221,32.12905,2441.4,2441.3,0.81908]
[1750502303427,7.22005,2441.4,2441.3,0.81908]
[1750502303620,0.8191,2441.3,2441.2,0.8191]
[1750502303931,0.81912,2441.2,2441.1,0.81915]
[1750502304131,25.72412,2441.2,2441.1,0.81915]
[1750502304331,24.905,2441.2,2441.1,0.81915]
[1750502305438,25.72412,2441.2,2441.1,0.81915]
[1750502305635,24.905,2441.2,2441.1,0.81915]
[1750502306128,25.72412,2441.2,2441.1,0.81915]
[1750502313238,26.38842,2441.2,2441.1,0.81915]
[1750502313540,0.81917,2441.1,2441.0,0.81916]
[1750502313838,0.81919,2441.0,2440.9,3.97387599]
[1750502314242,25.70219,2441.0,2440.9,4.72461]
[1750502314835,0.81928,2440.8,2440.6,9.6108]
[1750502315137,1.46684,2440.9,2440.8,0.81923]